bitfinex/quotes_BTCUSD_20241022
["timestamp","ask_amount","ask_price","bid_price","bid_amount"]
[1729557613148,0.34535825,66755.0,66754.0,0.000824]
[1729557613590,0.16276838,66755.0,66754.0,0.000824]
[1729557613823,0.149801,66755.0,66754.0,0.000824]
[1729557614039,0.01,66759.0,66754.0,0.000824]
[1729557614504,0.149801,66755.0,66754.0,0.000824]
[1729557615197,0.155801,66755.0,66754.0,0.001824]
[1729557615428,0.006,66755.0,66754.0,0.001824]
[1729557615658,0.299578,66761.0,66754.0,0.0310513]
[1729557615940,0.149786,66762.0,66756.0,0.149797]
[1729557616167,0.299567,66763.0,66756.0,0.149797]
[1729557616378,0.01165,66765.0,66755.0,0.00299568]
[1729557616379,0.005,66762.0,66755.0,0.00299568]
[1729557616638,0.012,66762.0,66754.0,0.007824]
[1729557616880,0.001,66755.0,66754.0,0.007824]
[1729557617109,0.001,66755.0,66754.0,0.020824]
[1729557617321,0.150801,66755.0,66754.0,0.007824]
[1729557617545,0.152801,66755.0,66754.0,0.007824]
[1729557617758,0.150801,66755.0,66754.0,0.007824]
[1729557617971,0.151801,66755.0,66754.0,0.000824]
[1729557618439,0.1498,66756.0,66754.0,0.000824]
[1729557618671,0.149801,66755.0,66754.0,0.000824]
[1729557619085,0.005,66758.0,66754.0,0.000824]
[1729557619292,0.149798,66757.0,66754.0,0.000824]
[1729557619504,0.149799,66756.0,66754.0,0.008824]
[1729557619715,0.005,66758.0,66754.0,0.019824]
[1729557619927,0.005,66761.0,66755.0,0.22499044]
[1729557620142,0.007,66761.0,66755.0,0.02645962]
[1729557620354,0.149794,66759.0,66755.0,0.00299578]
[1729557620570,0.149784,66763.0,66757.0,0.32238587]
[1729557620816,0.299552,66767.0,66758.0,0.1572898]
[1729557621090,0.002,66768.0,66758.0,0.15345939]
[1729557621327,0.151774,66768.0,66760.0,0.29958]
[1729557621558,0.002,66768.0,66761.0,0.149786]
[1729557621784,0.002,66768.0,66758.0,0.24328532]
[1729557621785,0.151429,66765.0,66762.0,0.00450024]
[1729557622018,0.00165,66765.0,66758.0,0.24328532]
[1729557622235,0.00265,66765.0,66760.0,0.22499044]
[1729557622454,0.00165,66763.0,66762.0,0.149785]
[1729557622667,0.00165,66763.0,66760.0,0.22499044]
[1729557622895,0.00165,66763.0,66762.0,0.00450024]
[1729557623127,0.00165,66763.0,66758.0,0.31175215]
[1729557623355,0.17258987,66759.0,66758.0,0.013]
[1729557623629,0.17258987,66759.0,66758.0,0.011]
[1729557623630,0.33238187,66759.0,66758.0,0.011]
[1729557624137,0.33438187,66759.0,66758.0,0.011]
[1729557624366,0.149801,66755.0,66751.0,0.000824]
[1729557624616,0.33439087,66755.0,66751.0,0.000824]
[1729557624888,0.50801529,66755.0,66751.0,0.000824]
[1729557625572,0.50801529,66755.0,66754.0,0.002824]
[1729557626021,0.50801529,66755.0,66754.0,0.000824]
[1729557626263,0.50801529,66755.0,66754.0,0.001824]
[1729557626264,0.51301529,66755.0,66754.0,0.001824]
[1729557626503,0.4993127,66755.0,66754.0,0.001824]
[1729557626724,0.299651,66745.0,66730.0,0.22499044]
[1729557626953,0.33442687,66739.0,66730.0,0.22499044]
[1729557627177,0.161837,66739.0,66730.0,0.22499044]
[1729557627384,0.17850784,66739.0,66730.0,0.22499044]
[1729557627615,0.007,66734.0,66730.0,0.22499044]
[1729557627849,0.149855,66731.0,66730.0,0.22499044]
[1729557628297,0.149858,66730.0,66724.0,0.150694]
[1729557628529,0.149858,66730.0,66725.0,0.09751934]
[1729557628770,0.149852,66733.0,66726.0,0.149864]
[1729557629003,0.002,66729.0,66725.0,0.09751934]
[1729557629237,0.304699,66734.0,66725.0,0.09751934]
[1729557629238,0.306699,66734.0,66725.0,0.09751934]
[1729557629458,0.449551,66733.0,66726.0,0.03980973]
[1729557629711,0.149854,66732.0,66726.0,0.03980973]
[1729557629924,0.007,66734.0,66725.0,0.149867]
[1729557630139,0.449551,66733.0,66725.0,0.149867]
[1729557630376,0.149853,66732.0,66724.0,0.012824]
[1729557630809,0.149853,66732.0,66726.0,0.013]
[1729557631014,0.01,66734.0,66726.0,0.149865]
[1729557631292,0.159849,66734.0,66727.0,0.149862]
[1729557631507,0.01,66734.0,66727.0,0.149862]
[1729557631931,0.01,66734.0,66728.0,0.0084486]
[1729557632150,0.002,66739.0,66733.0,0.14985]
[1729557632384,0.002,66739.0,66734.0,0.00849157]
[1729557632610,0.159836,66740.0,66734.0,0.00849157]
[1729557632837,0.149837,66739.0,66734.0,0.00849157]
[1729557633083,0.01,66740.0,66734.0,0.00849157]
[1729557633288,0.26229814,66746.0,66735.0,0.22499044]
[1729557633289,0.149824,66745.0,66735.0,0.22499044]
[1729557633534,0.01,66746.0,66735.0,0.00849157]
[1729557633535,0.002,66736.0,66735.0,0.00849157]
[1729557633770,0.149836,66740.0,66735.0,0.00849157]
[1729557633972,0.002,66743.0,66737.0,0.149841]
[1729557634189,0.002,66741.0,66737.0,0.14984]
[1729557634411,0.002,66741.0,66738.0,0.01148803]
[1729557634633,0.151833,66741.0,66738.0,0.00849157]
[1729557634860,0.002,66747.0,66739.0,0.00299655]
[1729557635080,0.002,66747.0,66739.0,0.01148812]
[1729557635302,0.005,66748.0,66739.0,0.00299655]
[1729557635303,0.154818,66748.0,66739.0,0.00299655]
[1729557635526,0.149818,66748.0,66742.0,0.149828]
[1729557635729,0.299625,66750.0,66742.0,0.149828]
[1729557635946,0.002,66753.0,66743.0,0.15742053]
[1729557636161,0.002,66756.0,66745.0,0.299647]
[1729557636430,0.005,66757.0,66747.0,0.149819]
[1729557636431,0.149808,66752.0,66747.0,0.149819]
[1729557636639,0.002,66755.0,66746.0,0.00846138]
[1729557636865,0.301584,66760.0,66747.0,0.151955]
[1729557637104,0.01,66762.0,66747.0,0.42271452]
[1729557637334,0.002,66760.0,66750.0,0.449437]
[1729557637546,0.012,66762.0,66752.0,0.299616]
[1729557637791,0.161786,66762.0,66756.0,0.149797]
[1729557638020,0.002,66761.0,66757.0,0.00834411]
[1729557638236,0.149794,66758.0,66757.0,0.00834411]
[1729557638437,0.002,66761.0,66750.0,0.14895915]
[1729557638665,0.299576,66761.0,66757.0,0.00834411]
[1729557638894,0.149793,66759.0,66754.0,0.149802]
[1729557639102,0.012,66762.0,66758.0,0.00834411]
[1729557639322,0.149792,66759.0,66754.0,0.149803]
[1729557639962,0.149799,66757.0,66751.0,0.149809]
[1729557640415,0.002,66756.0,66752.0,0.149806]
[1729557640623,0.002,66758.0,66754.0,0.149801]
[1729557640828,0.002,66756.0,66755.0,0.00299563]
[1729557641039,0.151801,66755.0,66754.0,0.011]
[1729557641270,0.299604,66755.0,66751.0,0.009]
[1729557641533,0.149803,66754.0,66753.0,0.22499044]
[1729557641759,0.149806,66753.0,66743.0,0.299656]
[1729557641976,0.149806,66753.0,66752.0,0.014]
[1729557642188,0.304596,66757.0,66752.0,0.014]
[1729557642400,0.149802,66755.0,66752.0,0.014]
[1729557643247,0.299598,66756.0,66749.0,0.22499044]
[1729557643452,0.01,66757.0,66751.0,0.14981]
[1729557643682,0.149791,66760.0,66753.0,0.026]
[1729557643928,0.149794,66759.0,66754.0,0.15279871]
[1729557644422,0.00165,66765.0,66755.0,0.44855815]
[1729557644639,0.002,66761.0,66749.0,0.53461944]
[1729557644883,0.00665,66763.0,66749.0,0.53461944]
[1729557644884,0.002,66754.0,66753.0,0.01]
[1729557645103,0.002,66754.0,66751.0,0.14981]
[1729557645321,0.002,66752.0,66751.0,0.14981]
[1729557645811,0.002,66753.0,66751.0,0.14981]
[1729557646109,0.149797,66757.0,66751.0,0.299618]
[1729557646345,0.149797,66757.0,66754.0,0.007]
[1729557646346,0.149802,66755.0,66754.0,0.007]
[1729557646575,0.00165,66759.0,66754.0,0.306605]
[1729557646808,0.00165,66759.0,66755.0,0.1568]
[1729557647031,0.00165,66759.0,66752.0,0.299616]
[1729557647271,0.00165,66759.0,66757.0,0.149796]
[1729557647503,0.00165,66759.0,66757.0,0.149795]
[1729557647745,0.00165,66759.0,66753.0,0.299612]
[1729557647993,0.00165,66759.0,66755.0,0.149801]
[1729557648216,0.00165,66759.0,66756.0,0.149797]
[1729557648446,0.151444,66759.0,66754.0,0.008]
[1729557648653,0.151444,66759.0,66757.0,0.012]
[1729557648879,0.00165,66759.0,66757.0,0.012]
[1729557649565,0.00165,66759.0,66757.0,0.02]
[1729557650010,0.00165,66759.0,66756.0,0.149798]
[1729557650249,0.153443,66759.0,66754.0,0.149802]
[1729557650462,0.153443,66759.0,66757.0,0.008]
[1729557650724,0.002,66758.0,66757.0,0.008]
[1729557651160,0.153443,66759.0,66755.0,0.012]
[1729557651812,0.151794,66758.0,66754.0,0.149802]
[1729557652228,0.00365,66759.0,66752.0,0.299616]
[1729557652427,0.002,66758.0,66756.0,0.008]
[1729557652965,0.002,66758.0,66754.0,0.149803]
[1729557653172,0.002,66758.0,66754.0,0.158803]
[1729557653423,0.002,66758.0,66754.0,0.170803]
[1729557653636,0.002,66758.0,66754.0,0.158803]
[1729557654061,0.002,66758.0,66756.0,0.013]
[1729557654263,0.002,66758.0,66754.0,0.158803]
[1729557654264,0.002,66758.0,66754.0,0.149803]
[1729557654472,0.151444,66759.0,66754.0,0.162803]
[1729557654473,0.153444,66759.0,66754.0,0.162803]
[1729557654686,0.151444,66759.0,66754.0,0.162803]
[1729557654911,0.00165,66759.0,66754.0,0.013]
[1729557655122,0.00165,66759.0,66754.0,0.26142126]
[1729557655360,0.00165,66759.0,66758.0,0.149794]
[1729557655573,0.00165,66759.0,66758.0,0.29875315]
[1729557656024,0.00165,66759.0,66758.0,0.74634359]
[1729557656239,0.00165,66759.0,66758.0,1.03572293]
[1729557656453,0.299474,66784.0,66758.0,1.03572293]
[1729557656454,4.88219904,66770.0,66769.0,0.3453231]
[1729557656710,4.8518657,66770.0,66769.0,0.92907056]
[1729557656914,4.78788057,66770.0,66769.0,0.94727661]
[1729557657654,4.75925057,66770.0,66769.0,0.94727661]
[1729557657884,0.001696,66791.0,66777.0,0.01]
[1729557658115,4.94417633,66780.0,66779.0,0.3781062]
[1729557658323,4.91517633,66780.0,66779.0,0.91756139]
[1729557658746,4.91517633,66780.0,66779.0,0.75308713]
[1729557659642,4.91517633,66780.0,66779.0,0.75408713]
[1729557660094,4.91517633,66780.0,66779.0,0.75308713]
[1729557660513,4.91517633,66780.0,66779.0,0.75408713]
[1729557660930,4.91517633,66780.0,66779.0,0.75508713]
[1729557666018,4.91517633,66780.0,66779.0,0.92764023]
[1729557666493,4.91517633,66780.0,66779.0,0.75508713]
[1729557667602,4.91517633,66780.0,66779.0,0.75408713]
[1729557668059,4.91517633,66780.0,66779.0,0.75508713]
[1729557668279,4.88717633,66780.0,66779.0,0.75508713]
[1729557668490,4.88717633,66780.0,66779.0,0.75408713]
[1729557668713,4.88717633,66780.0,66779.0,0.75308713]
[1729557668944,4.88717633,66780.0,66779.0,0.75408713]
[1729557669173,4.88717633,66780.0,66779.0,0.75508713]
[1729557669382,4.88717633,66780.0,66779.0,0.75408713]
[1729557669597,4.88717633,66780.0,66779.0,0.92664023]
[1729557669809,4.66023635,66780.0,66779.0,0.92664023]
[1729557670490,4.66023635,66780.0,66779.0,0.75408713]
[1729557670720,4.63634354,66780.0,66779.0,0.92564023]
[1729557670963,4.63634354,66780.0,66779.0,0.92764023]
[1729557671191,4.63799354,66780.0,66779.0,0.92664023]
[1729557671399,4.63799354,66780.0,66779.0,0.75408713]
[1729557671824,4.63799354,66780.0,66779.0,0.75508713]
[1729557672271,4.63799354,66780.0,66779.0,0.75308713]
[1729557672746,4.63799354,66780.0,66779.0,0.75508713]
[1729557673405,4.63799354,66780.0,66779.0,0.92764023]
[1729557673861,4.63799354,66780.0,66779.0,0.92564023]
[1729557674089,4.63799354,66780.0,66779.0,1.45308713]
[1729557674770,4.63799354,66780.0,66779.0,1.45508713]
[1729557675000,4.63799354,66780.0,66779.0,1.62664023]
[1729557675264,4.29455894,66780.0,66779.0,1.62664023]
[1729557675485,4.26555894,66780.0,66779.0,1.62664023]
[1729557675934,4.26555894,66780.0,66779.0,1.62764023]
[1729557676401,4.23314308,66780.0,66779.0,1.62764023]
[1729557676887,4.22280826,66780.0,66779.0,1.62664023]
[1729557677850,4.22280826,66780.0,66779.0,1.62564023]
[1729557678045,4.22280826,66780.0,66779.0,1.62664023]
[1729557678272,4.22280826,66780.0,66779.0,1.62764023]
[1729557680471,4.13290232,66780.0,66779.0,1.62764023]
[1729557681490,3.84663124,66780.0,66779.0,1.62764023]
[1729557681704,3.66814524,66780.0,66779.0,1.62764023]
[1729557682798,3.66814524,66780.0,66779.0,1.62846423]
[1729557683249,2.05978604,66780.0,66779.0,1.62846423]
[1729557683485,1.43097679,66780.0,66779.0,2.01519126]
[1729557683720,1.26570388,66780.0,66779.0,2.01519126]
[1729557683957,1.16970473,66780.0,66779.0,2.01519126]
[1729557684190,1.16040473,66780.0,66779.0,1.94847393]
[1729557684429,0.6897867,66780.0,66779.0,1.94747393]
[1729557684667,0.50991485,66780.0,66779.0,2.03536475]
[1729557684901,0.44315843,66780.0,66779.0,2.03936475]
[1729557685144,0.0795,66818.0,66779.0,2.03936475]
[1729557685145,0.0795,66818.0,66806.0,0.299374]
[1729557685371,0.0795,66818.0,66816.0,0.172664]
[1729557685843,0.0795,66818.0,66816.0,0.17371458]
[1729557686076,0.0795,66818.0,66816.0,0.1802289]
[1729557686312,0.0797,66827.0,66816.0,0.9902289]
[1729557686544,0.001696,66819.0,66816.0,0.9902289]
[1729557687019,0.001696,66819.0,66816.0,1.162782]
[1729557687489,0.001696,66819.0,66816.0,0.9902289]
[1729557687968,0.001696,66819.0,66816.0,1.20667636]
[1729557688225,0.001696,66819.0,66816.0,1.37822946]
[1729557688690,0.001696,66819.0,66816.0,1.37922946]
[1729557688903,0.001696,66819.0,66816.0,1.25309824]
[1729557689147,0.001696,66819.0,66816.0,1.20567636]
[1729557689374,0.001696,66819.0,66816.0,1.42565085]
[1729557689829,0.001696,66819.0,66816.0,1.25209775]
[1729557690054,0.001696,66819.0,66816.0,1.42465085]
[1729557690535,0.001696,66819.0,66816.0,1.42565085]
[1729557690812,1e-06,66817.0,66816.0,1.43020912]
[1729557691047,1e-06,66817.0,66816.0,1.43220912]
[1729557691502,0.001696,66828.0,66821.0,0.282653]
[1729557691729,1e-06,66822.0,66821.0,1.49133568]
[1729557691961,1e-06,66822.0,66821.0,1.49849219]
[1729557693588,1e-06,66822.0,66821.0,1.49949219]
[1729557694270,1e-06,66822.0,66821.0,1.50049219]
[1729557694960,1e-06,66824.0,66823.0,0.282649]
[1729557695210,0.00165,66832.0,66829.0,0.182635]
[1729557695432,0.00165,66832.0,66829.0,0.65056864]
[1729557695916,0.00165,66832.0,66829.0,0.65772411]
[1729557696121,0.00165,66832.0,66829.0,1.35772411]
[1729557696350,0.1876,66860.0,66832.0,0.4551811]
[1729557696576,1e-06,66833.0,66832.0,0.60414025]
[1729557696803,1e-06,66834.0,66833.0,0.282626]
[1729557697018,1e-06,66834.0,66833.0,0.43158515]
[1729557697232,1e-06,66834.0,66833.0,1.24456581]
[1729557697472,1e-06,66834.0,66833.0,1.39238516]
[1729557697724,0.1876,66860.0,66846.0,0.01]
[1729557697939,0.1876,66860.0,66846.0,0.47797754]
[1729557698155,0.1876,66860.0,66846.0,1.13854558]
[1729557698370,0.1876,66860.0,66846.0,1.40987742]
[1729557698586,0.1876,66860.0,66846.0,1.57393628]
[1729557698802,0.1876,66860.0,66846.0,1.34894584]
[1729557699033,0.1876,66860.0,66846.0,1.30558059]
[1729557699270,0.083,66868.0,66846.0,1.30558059]
[1729557699271,0.083,66868.0,66846.0,1.53281527]
[1729557699503,0.083,66868.0,66859.0,0.01]
[1729557699739,0.083,66868.0,66867.0,0.27255]
[1729557699957,0.083,66868.0,66867.0,0.48699746]
[1729557700195,0.1865,66872.0,66871.0,0.149541]
[1729557700430,0.1865,66872.0,66871.0,0.14895915]
[1729557700656,0.2633,66872.0,66871.0,0.14895915]
[1729557700897,0.1865,66872.0,66871.0,0.29850015]
[1729557701124,0.1865,66872.0,66871.0,0.45051761]
[1729557701825,0.1865,66872.0,66871.0,0.34234905]
[1729557702043,0.1865,66872.0,66871.0,0.32834905]
[1729557702326,0.1865,66872.0,66871.0,1.02834905]
[1729557702557,0.1865,66872.0,66871.0,1.04234905]
[1729557703010,0.1865,66872.0,66871.0,1.02834905]
[1729557703478,0.1865,66872.0,66871.0,1.1913082]
[1729557703928,0.1865,66872.0,66871.0,1.04234905]
[1729557704147,0.1865,66872.0,66871.0,1.05634905]
[1729557704402,0.1865,66872.0,66871.0,1.05859307]
[1729557704624,0.1865,66872.0,66871.0,1.13059307]
[1729557704844,0.1865,66872.0,66871.0,1.14234905]
[1729557705063,0.1865,66872.0,66871.0,1.2913082]
[1729557705497,0.226317,66882.0,66871.0,1.14401108]
[1729557705742,0.0768,66882.0,66881.0,0.149519]
[1729557705976,0.0768,66882.0,66881.0,0.31343005]
[1729557706246,0.0768,66882.0,66881.0,1.01343005]
[1729557706686,0.181996,66884.0,66883.0,0.149514]
[1729557706912,0.181996,66884.0,66883.0,0.32147315]
[1729557707140,0.001696,66884.0,66883.0,0.42827634]
[1729557707386,0.001696,66884.0,66883.0,1.39559308]
[1729557707628,0.001696,66884.0,66883.0,1.18060264]
[1729557707847,0.001696,66884.0,66883.0,1.22492111]
[1729557708082,0.001696,66884.0,66883.0,1.18060264]
[1729557709085,0.001696,66884.0,66883.0,1.18160264]
[1729557709319,0.001696,66884.0,66883.0,1.35415574]
[1729557709560,0.001696,66884.0,66883.0,1.35315574]
[1729557709799,0.001696,66884.0,66883.0,1.36715574]
[1729557710471,0.001696,66884.0,66883.0,1.37115574]
[1729557710688,0.001696,66884.0,66883.0,1.19860264]
[1729557710924,0.001696,66884.0,66883.0,1.37115574]
[1729557711177,0.001696,66884.0,66883.0,1.35715574]
[1729557711404,0.001696,66884.0,66883.0,1.35315574]
[1729557711626,0.001694,66889.0,66888.0,0.282503]
[1729557711880,0.001694,66889.0,66888.0,1.25115576]
[1729557712115,9.398e-05,66889.0,66888.0,1.36837764]
[1729557712346,9.398e-05,66889.0,66888.0,1.25780296]
[1729557712571,9.398e-05,66889.0,66888.0,1.36820728]
[1729557712793,9.398e-05,66889.0,66888.0,1.25780296]
[1729557713020,9.398e-05,66889.0,66888.0,1.24380296]
[1729557713257,9.398e-05,66889.0,66888.0,1.12910935]
[1729557713512,9.398e-05,66889.0,66888.0,1.30166245]
[1729557713750,9.398e-05,66889.0,66888.0,1.22952092]
[1729557714213,9.398e-05,66889.0,66888.0,1.21741941]
[1729557714445,9.398e-05,66889.0,66888.0,1.36730116]
[1729557714674,9.398e-05,66889.0,66888.0,1.3010685]
[1729557715128,9.398e-05,66889.0,66888.0,1.3150685]
[1729557715397,9.398e-05,66889.0,66888.0,1.38129127]
[1729557715873,0.19389398,66889.0,66888.0,1.13310935]
[1729557716119,0.19389398,66889.0,66888.0,1.13810935]
[1729557716364,0.19389398,66889.0,66888.0,0.98360635]
[1729557716588,0.19389398,66889.0,66888.0,1.13310935]
[1729557716832,0.19389398,66889.0,66888.0,1.2870685]
[1729557717065,0.19389398,66889.0,66888.0,1.3100685]
[1729557718230,0.19389398,66889.0,66888.0,1.15610935]
[1729557718445,0.19389398,66889.0,66888.0,1.16110935]
[1729557719397,0.19389398,66889.0,66888.0,1.15610935]
[1729557719610,0.19389398,66889.0,66888.0,1.05076213]
[1729557719844,0.19389398,66889.0,66888.0,1.15610935]
[1729557720076,0.19389398,66889.0,66888.0,1.3050685]
[1729557720515,0.19389398,66889.0,66888.0,1.34922428]
[1729557720745,0.19389398,66889.0,66888.0,1.05076213]
[1729557721011,0.19389398,66889.0,66888.0,0.30660635]
[1729557721765,0.19389398,66889.0,66888.0,0.28360635]
[1729557722907,0.27069398,66889.0,66888.0,0.28360635]
[1729557723338,0.27069398,66889.0,66888.0,0.26960635]
[1729557723569,0.42219498,66889.0,66888.0,0.25560635]
[1729557723792,0.27069398,66889.0,66888.0,0.96449557]
[1729557724012,0.27069398,66889.0,66888.0,1.11599857]
[1729557724252,0.27069398,66889.0,66888.0,0.98049557]
[1729557724681,0.27069398,66889.0,66888.0,0.96949557]
[1729557724895,0.27069398,66889.0,66888.0,0.98049557]
[1729557725601,0.27069398,66889.0,66888.0,1.12999857]
[1729557726055,0.27069398,66889.0,66888.0,1.17415435]
[1729557726506,0.27069398,66889.0,66888.0,1.19623225]
[1729557726940,0.27069398,66889.0,66888.0,1.12999857]
[1729557727164,9.398e-05,66889.0,66888.0,1.15299857]
[1729557727406,0.1815,66902.0,66901.0,0.149474]
[1729557727621,0.1815,66902.0,66901.0,1.05769512]
[1729557727842,0.1815,66902.0,66901.0,1.10941369]
[1729557728529,0.1815,66902.0,66901.0,1.04294184]
[1729557729013,0.1815,66902.0,66901.0,1.13079604]
[1729557729567,0.1815,66902.0,66901.0,0.31994184]
[1729557729783,0.1815,66902.0,66901.0,0.36641869]
[1729557730015,0.1815,66902.0,66901.0,0.32999444]
[1729557730451,0.183148,66902.0,66901.0,0.32999444]
[1729557730871,0.183148,66902.0,66901.0,0.37649966]
[1729557731090,0.33762,66902.0,66901.0,0.07806651]
[1729557731303,0.188148,66902.0,66901.0,0.03156129]
[1729557731715,0.33962,66902.0,66901.0,0.03156129]
[1729557731921,0.34462,66902.0,66901.0,0.16486286]
[1729557732384,0.34462,66902.0,66901.0,0.03156129]
[1729557732616,0.195148,66902.0,66901.0,0.85836439]
[1729557732861,0.195148,66902.0,66901.0,0.70646014]
[1729557733098,0.005,66901.0,66900.0,0.111134]
[1729557733342,0.5121741,66902.0,66899.0,0.111134]
[1729557733583,0.149476,66900.0,66899.0,0.111134]
[1729557733813,0.002,66899.0,66898.0,0.111134]
[1729557734036,0.002,66899.0,66893.0,0.22499044]
[1729557734037,0.151483,66897.0,66896.0,0.111134]
[1729557734265,0.1725531,66897.0,66896.0,0.26009315]
[1729557734487,0.1725531,66897.0,66896.0,0.14895915]
[1729557735618,0.1745531,66897.0,66896.0,0.14895915]
[1729557736086,0.1745531,66897.0,66896.0,0.15995915]
[1729557736330,0.1725531,66897.0,66896.0,0.30944415]
[1729557736550,0.1822303,66901.0,66896.0,0.15995915]
[1729557736784,0.1775531,66901.0,66900.0,0.11135578]
[1729557737510,0.183148,66902.0,66901.0,0.149474]
[1729557737737,0.183148,66902.0,66901.0,0.29843315]
[1729557738182,0.188148,66902.0,66897.0,0.149483]
[1729557738417,0.183148,66902.0,66901.0,0.22499044]
[1729557738638,0.183148,66902.0,66901.0,0.29843315]
[1729557739547,0.001648,66902.0,66901.0,0.4223669]
[1729557739787,0.001648,66902.0,66901.0,0.42743315]
[1729557740232,0.001648,66902.0,66901.0,0.43743315]
[1729557740477,0.001648,66902.0,66901.0,0.44323238]
[1729557740695,0.001648,66902.0,66901.0,0.57105608]
[1729557740963,0.001648,66902.0,66901.0,0.56680761]
[1729557741187,0.001648,66902.0,66901.0,0.43823238]
[1729557741407,0.001648,66902.0,66901.0,0.58613782]
[1729557741635,0.001648,66902.0,66901.0,0.56320285]
[1729557742089,0.001648,66902.0,66901.0,0.42923238]
[1729557743019,0.001648,66902.0,66901.0,0.49888784]
[1729557743471,0.1762011,66902.0,66901.0,0.52422587]
[1729557743710,0.1762011,66902.0,66901.0,0.17975838]
[1729557744174,0.001648,66902.0,66901.0,0.32923238]
[1729557744394,0.001648,66902.0,66901.0,0.52704441]
[1729557744623,0.001648,66902.0,66901.0,0.32923238]
[1729557744915,0.001648,66902.0,66901.0,0.17975838]
[1729557745380,0.003648,66902.0,66901.0,0.17975838]
[1729557745608,0.003648,66902.0,66901.0,0.32923238]
[1729557745609,0.001648,66902.0,66901.0,0.32923238]
[1729557745834,0.001648,66902.0,66901.0,0.37778053]
[1729557746058,0.001648,66902.0,66901.0,0.17975838]
[1729557746289,0.001648,66902.0,66901.0,0.33222159]
[1729557746510,0.001648,66902.0,66901.0,0.32923238]
[1729557746722,0.001648,66902.0,66901.0,0.63977278]
[1729557746941,0.001648,66902.0,66901.0,0.44175063]
[1729557747125,0.001648,66902.0,66901.0,0.32923238]
[1729557748461,0.001648,66902.0,66901.0,0.47588443]
[1729557748691,0.001648,66902.0,66901.0,0.42923238]
[1729557749133,0.001648,66902.0,66901.0,0.45223238]
[1729557751893,0.001648,66902.0,66901.0,0.45383238]
[1729557752124,0.001648,66902.0,66901.0,0.50046864]
[1729557752350,0.001648,66902.0,66901.0,0.45383238]
[1729557753988,0.001648,66902.0,66901.0,0.50045621]
[1729557754222,0.001648,66902.0,66901.0,0.45383238]
[1729557754900,0.001648,66902.0,66901.0,0.58158976]
[1729557755365,0.001648,66902.0,66901.0,0.62820343]
[1729557755592,0.001648,66902.0,66901.0,0.63486685]
[1729557756066,0.001648,66902.0,66901.0,0.64486685]
[1729557756290,0.001648,66902.0,66901.0,0.63386685]
[1729557756532,0.001648,66902.0,66901.0,0.71266685]
[1729557756996,0.001648,66902.0,66901.0,0.72666685]
[1729557757693,0.001648,66902.0,66901.0,0.71566685]
[1729557758134,0.001648,66902.0,66901.0,0.72966685]
[1729557759702,0.001648,66902.0,66901.0,0.52010947]
[1729557759941,0.001648,66902.0,66901.0,0.4734958]
[1729557760448,0.001648,66902.0,66901.0,0.46183238]
[1729557764120,0.001648,66902.0,66901.0,0.50845964]
[1729557764582,0.001648,66902.0,66901.0,0.46183238]
[1729557766192,0.001648,66902.0,66901.0,0.45683238]
[1729557766428,0.001648,66902.0,66901.0,0.18435838]
[1729557766429,0.4548011,66902.0,66901.0,0.18435838]
[1729557766733,0.4578011,66902.0,66901.0,0.18435838]
[1729557766892,0.285248,66902.0,66901.0,0.55882282]
[1729557767129,0.201448,66902.0,66901.0,0.43950793]
[1729557767361,0.001648,66902.0,66901.0,0.31983238]
[1729557767602,0.001648,66902.0,66901.0,0.40583238]
[1729557768024,0.001648,66902.0,66901.0,0.4126908]
[1729557768252,0.001648,66902.0,66901.0,0.4186908]
[1729557768493,0.001648,66902.0,66901.0,0.8139951]
[1729557768729,0.001648,66902.0,66901.0,0.58900466]
[1729557768960,0.001648,66902.0,66901.0,0.62763664]
[1729557769179,0.001648,66902.0,66901.0,0.48832278]
[1729557769409,0.001648,66902.0,66901.0,0.49632278]
[1729557769643,0.001648,66902.0,66901.0,0.51032278]
[1729557769884,0.001648,66902.0,66901.0,0.73131322]
[1729557770131,0.001648,66902.0,66901.0,0.50632278]
[1729557770356,0.001648,66902.0,66901.0,0.52032278]
[1729557770593,0.001648,66902.0,66901.0,0.50632278]
[1729557771051,0.001648,66902.0,66901.0,0.52032278]
[1729557771268,0.001648,66902.0,66901.0,0.50846436]
[1729557772564,0.001648,66902.0,66901.0,0.62034452]
[1729557772978,0.001648,66902.0,66901.0,0.50846436]
[1729557773776,0.001648,66902.0,66901.0,0.49446436]
[1729557773973,0.003648,66902.0,66901.0,0.48046436]
[1729557774345,0.003648,66902.0,66901.0,0.48546436]
[1729557774535,0.001648,66902.0,66901.0,0.48546436]
[1729557774759,0.002648,66902.0,66901.0,0.48646436]
[1729557775701,0.002648,66902.0,66901.0,0.48146436]
[1729557777058,0.002648,66902.0,66901.0,0.48246436]
[1729557777286,0.002648,66902.0,66901.0,0.60922414]
[1729557777683,0.002648,66902.0,66901.0,0.48246436]
[1729557779373,0.002648,66902.0,66901.0,0.47746436]
[1729557779632,0.002648,66902.0,66901.0,0.43083238]
[1729557780065,0.002648,66902.0,66901.0,0.47750859]
[1729557781063,0.002648,66902.0,66901.0,0.48750859]
[1729557781274,0.002648,66902.0,66901.0,0.47750859]
[1729557783556,0.002648,66902.0,66901.0,0.60404848]
[1729557784929,0.002648,66902.0,66901.0,0.47750859]
[1729557795397,1e-08,66902.0,66901.0,0.47750859]
[1729557796115,0.1971,66912.0,66911.0,0.149452]
[1729557796370,0.1971,66912.0,66911.0,0.29841115]
[1729557796584,0.1971,66912.0,66911.0,0.30341682]
[1729557796819,0.288,66912.0,66911.0,0.00500567]
[1729557797029,0.62680272,66912.0,66911.0,0.00500567]
[1729557797247,0.01,66907.0,66906.0,0.13452992]
[1729557797468,0.154464,66906.0,66904.0,0.13452992]
[1729557797694,0.149465,66905.0,66904.0,0.28348907]
[1729557797936,0.005,66906.0,66904.0,0.14895915]
[1729557798124,0.01,66907.0,66905.0,0.13451934]
[1729557798396,0.01,66906.0,66905.0,0.13451934]
[1729557798898,0.01,66906.0,66904.0,0.14895915]
[1729557799120,0.01,66906.0,66905.0,0.13449876]
[1729557799361,0.005,66907.0,66906.0,0.149463]
[1729557799605,0.001,66907.0,66906.0,0.4559113]